Workbook

Sheet Revenda
B2: Calculadora de Investimento de Revenda | H2: RESUMO FINAL
B3: PROMOTORA
B4: SOCIEDADE/PROPRIETÁRIO | H4: INÍCIO | I4: ENTRADA | J4: =C22 -> 10000 | K4: =SUM(J4:J15) -> 13067.85
B5: ZONA | C5: Porto | I5: BANCO | J5: =C27 -> 301
B6: TIPOLOGIA | C6: T2 | J6: 202
B7: FRAÇÃO | C7: 1ºAndar Direito | D7: Preencher o que está a amarelo | J7: 20.85
B8: VALOR PATRIMONIAL | J8: 0
B9: VALOR DE AQUISIÇÃO | C9: 100000 | D9: Esta calculadora está estruturada para um investimento de revenda de um imóvel. A tabela do lado esquerdo serve para inserir os dados necessários, e realizar cálculos auxilares. A tabela do lado direito (Resumo Final) está estruturada em função do investimento no início, durante, e no final do investimento. No fim apresenta-se uma análise do investimento como um todo. | J9: 15
B10: OBRAS | C10: 0 | J10: 239
B11: INVESTIDO | C11: =C9+C10 -> 100000 | J11: 0
B12: PVP | C12: 175000 | I12: IMPOSTOS | J12: =C16 -> 800
B13: LUCRO BRUTO | C13: =C12-C9 -> 75000 | J13: =C17 -> 0
B14: OUTRAS COMISSÕES | J14: =C26 -> 540
B15: COMISSÃO IMOBILIÁRIA (5%) | C15: =C12*0.05+0.23*(C12*0.05) -> 10762.5 | I15: ESCRITURA | J15: =C18 -> 950
B16: IS | C16: =0.008*MAX(C8:C9) -> 800 | H16: DURANTE | I16: OBRAS | J16: =C10 -> 0 | K16: =SUM(J16:J21) -> 3883.443934
B17: IMT | C17: =AuxiliarIMT!C11 -> 0 | I17: GESTÃO | J17: =C42 -> 200
B18: ESCRITURA | C18: 950 | I18: CONDOMÍNIO | J18: =C41 -> 360
B19: COMISSÕES BANCÁRIAS | D19: FINANCIAMENTO | I19: IMI | J19: =C40 -> 110
B20: FINANCIAMENTO | C20: 90000 | D20: Ano | E20: Juros pagos | F20: Dívida paga | I20: JUROS | J20: =C47 -> 3113.443934
B21: MATURIDADE (ANOS) | C21: 25 | D21: 1 | E21: =-CUMIPMT(C24/12,$C$21*12,$C$20,(1+(12*(D21-1))),(12*D21),0) -> 3113.443934 | F21: =($C$25*12)-E21 -> 2293.290625 | I21: SEGUROS | J21: =C35 -> 100
B22: CAPITAIS PRÓPRIOS | C22: =C9-C20 -> 10000 | D22: 2 | E22: =-CUMIPMT(C24/12,$C$21*12,$C$20,(1+(12*(D22-1))),(12*D22),0) -> 3031.878574 | F22: 2374.855984 | H22: FINAL | I22: BANCO | J22: =C37 -> 438.5335469 | K22: =SUM(J22:J24) -> 11201.03355
B23: LOAN TO VALUE | C23: =1-(C22/C9) -> 0.9 | D23: 3 | E23: =-CUMIPMT(C24/12,$C$21*12,$C$20,(1+(12*(D23-1))),(12*D23),0) -> 2947.412183 | F23: 2459.322375 | J23: =C38 -> 0
B24: TAXA DE JURO EFETIVA | C24: 0.035 | D24: 4 | E24: =-CUMIPMT(C24/12,$C$21*12,$C$20,(1+(12*(D24-1))),(12*D24),0) -> 2859.94158 | F24: 2546.792979 | I24: IMOBILIÁRIA | J24: =C50 -> 10762.5
B25: PRESTAÇÃO MENSAL | C25: =-PMT(C24/12,C21*12, C20) -> 450.5612132 | D25: 3 | E25: =-CUMIPMT(C24/12,$C$21*12,$C$20,(1+(12*(D25-1))),(12*D25),0) -> 2947.412183 | F25: 2459.322375 | H25: ANÁLISE | I25: CAPITAIS PRÓPRIOS | K25: =SUM(K4:K24) -> 28152.32748
B26: I.S. SOBRE CRÉDITO | C26: =0.006*C20 -> 540 | D26: 5 | E26: =-CUMIPMT(C24/12,$C$21*12,$C$20,(1+(12*(D26-1))),(12*D26),0) -> 2769.359914 | F26: 2637.374645 | I26: NO FINAL (VENDA)
B27: COMISSÃO DE ESTUDOS | C27: 301 | D27: 6 | E27: =-CUMIPMT(C24/12,$C$21*12,$C$20,(1+(12*(D27-1))),(12*D27),0) -> 2675.556534 | F27: 2731.178025 | I27: PVP | K27: =C12 -> 175000
B28: COMISSÃO DE FORMALIZAÇÃO | C28: 202 | D28: 7 | E28: =-CUMIPMT(C24/12,$C$21*12,$C$20,(1+(12*(D28-1))),(12*D28),0) -> 2578.416854 | F28: 2828.317705 | I28: PARA O BANCO | K28: =C20-F21 -> 87706.70938
B29: CHEQUE BANCÁRIO | C29: 20.85 | D29: 8 | E29: =-CUMIPMT(C24/12,$C$21*12,$C$20,(1+(12*(D29-1))),(12*D29),0) -> 2477.822211 | F29: 2928.912348 | I29: DIFERENÇA | K29: =K27-K28 -> 87293.29062
B30: REGISTO DA HIPOTÉCA | C30: 0 | D30: 9 | E30: =-CUMIPMT(C24/12,$C$21*12,$C$20,(1+(12*(D30-1))),(12*D30),0) -> 2373.649724 | F30: 3033.084835 | I30: LUCRO ANTES DE IMPOSTOS | K30: =K29-K25 -> 59140.96314
B31: CERTIDÃO PERMANENTE | C31: 15 | D31: 10 | E31: =-CUMIPMT(C24/12,$C$21*12,$C$20,(1+(12*(D31-1))),(12*D31),0) -> 2265.772138 | F31: 3140.962421 | I31: MAIS-VALIAS / IRC | K31: =IF(B52="Título Pessoal",C60,IF(B52="Empresa",C56,"")) -> 13610.4475
B32: AVALIAÇÃO BANCÁRIA | C32: 239 | I32: LUCRO LÍQUIDO DEPOIS DE IMPOSTOS | K32: =K30-K31 -> 45530.51564
B33: CERTIFICADO ENERGÉTICO | C33: 0 | I33: YIELD | K33: =K32/K25 -> 1.617291347
B34: JUROS PAGOS AO BANCO NO 1ºANO | C34: =E21 -> 3113.443934
B35: SEGUROS | C35: 100
B36: MANUNTENÇÃO DE CONTA | C36: 0
B37: AMORTIZAÇÃO ANTECIPADA (TX VARIÁVEL) | C37: =0.005*(C20-F21) -> 438.5335469
B38: DISTRATE BANCÁRIO | C38: 0
B39: OUTRAS DESPESAS DE GESTÃO
B40: IMI ANUAL | C40: 110
B41: CONDOMÍNIO | C41: =30*12 -> 360
B42: LUZ E ÁGUA | C42: 200
B44: RESUMO DE 1 ANO
B45: LUCRO BRUTO | C45: =C13 -> 75000
B46: COMISSÕES BANCÁRIAS | C46: =C26+C28+C29+C31+C32+C33+C35+C36+C37+C30+C27 -> 1856.383547
B47: JUROS AO BANCO | C47: =E21 -> 3113.443934
B48: DESPESAS DE GESTÃO | C48: =C41+C42 -> 560
B49: IMPOSTOS + ESCRITURA | C49: =C16+C17+C18 -> 1750
B50: COMISSÃO IMOBILIÁRIA | C50: =C15 -> 10762.5
B51: TRIBUTAÇÃO
B52: Título Pessoal
B53: RENDIMENTOS ANUAIS DO INVESTIDOR | C53: 25000
B54: RESULTADO ANTES DE IMPOSTOS | C54: 59140.96314
B55: VALOR PARA EFEITOS FISCAIS | C55: 62487.5
B56: VALOR PARA TRIBUTAÇÃO DE MAIS-VALIAS | C56: 31243.75
B57: TAXA DE IRS DO INVESTIDOR | C57: 0.35
B58: RENDIMENTOS ANUAIS DO INVESTIDOR + LUCRO DO INVESTIMENTO | C58: 56243.75
B59: TAXA DE IRS DO INVESTIDOR COM MAIS-VALIA | C59: 0.45
B60: MAIS-VALIAS | C60: 13610.4475

Sheet Arrendamento
B2: Calculadora de Investimento de Arrendamento | G2: RETORNO CASH ON CASH | I2: TAXA IRS INVESTIDOR
B3: PROMOTORA | G3: CAPITAIS PRÓPRIOS | H3: =SUM(C47:C50)+C22+C10 -> 77334.33325 | I3: RENDIMENTOS ANUAIS DO INVESTIDOR | J3: 25000
B4: SOCIEDADE/PROPRIETÁRIO | C4: Eos Finance | G4: RENDA ANUAL | H4: =C16*12 -> 9600 | I4: TAXA DE IRS DO INVESTIDOR | J4: =IF(J3<7092,'AuxiliarTABELA IRS'!C5,IF(J3<10701,'AuxiliarTABELA IRS'!C6,IF(J3<20262,'AuxiliarTABELA IRS'!C7,IF(J3<25001,'AuxiliarTABELA IRS'!C8,IF(J3<36857,'AuxiliarTABELA IRS'!C9,IF(J3<80641,'AuxiliarTABELA IRS'!C10,IF(J3>80641,'AuxiliarTABELA IRS'!C11))))))) -> 0.35
B5: ZONA | C5: Porto Rua Bonjardim | G5: RETORNO CASH ON CASH | H5: =H4/H3 -> 0.124136326 | I5: RENDIMENTOS ANUAIS DO INVESTIDOR COM ARRENDAMENTO | J5: =J3+H4 -> 34600
B6: TIPOLOGIA | C6: T1 | D6: Preencher o que está a amarelo | G6: CASHFLOW LÍQUIDIO ANUAL | H6: =H4-C49-C25*12 -> 4514.186936 | I6: TAXA DE IRS DO INVESTIDOR | J6: =IF(J5<7092,'AuxiliarTABELA IRS'!C5,IF(J5<10701,'AuxiliarTABELA IRS'!C6,IF(J5<20262,'AuxiliarTABELA IRS'!C7,IF(J5<25001,'AuxiliarTABELA IRS'!C8,IF(J5<36857,'AuxiliarTABELA IRS'!C9,IF(J5<80641,'AuxiliarTABELA IRS'!C10,IF(J5>80641,'AuxiliarTABELA IRS'!C11))))))) -> 0.37
B7: FRAÇÃO | C7: 1ºAndar Frente | G7: TRIBUTAÇÃO
B8: VALOR PATRIMONIAL | D8: Esta calculadora está estruturada para um investimento de arrendamento de um imóvel. Faz-se a estimativa do primeiro ao quinto ano do investimento, tendo em conta o financiamento e o tipo de tributação apliacada. Não se considera a apreciação do imóvel com o tempo, visto que esse lucro estará inteiramente relacionado com a venda do imóvel, caso seja esse o destino final. | G8: Trabalhador Independente com Contabilidade Organizada - Categoria B
B9: VALOR DE AQUISIÇÃO | C9: 150000 | G9: DURAÇÃO DO CONTRATO | H9: Menos de 5 anos | I9: OBRAS | J9: =C10 -> 20000 | K9: DESPESAS DE GESTÃO | L9: =C49 -> 790
B10: OBRAS | C10: 20000 | G10: Ano | H10: CASHFLOW | I10: RENDIMENTOS | J10: DEDUÇÕES | K10: DEDUÇÕES PARA ANOS SEGUINTES | L10: MONTANTE A TRIBUTAR | M10: TAXA | N10: IMPOSTO A PAGAR | O10: CONTABILISTA
B11: OUTRAS COMISSÕES | G11: 1 | H11: 4514.19 | I11: 9600 | J11: 27334.33 | K11: 17734.33 | L11: 0 | M11: 0.37 | N11: 0 | O11: 150
B12: IMT | C12: =AuxiliarIMT!G11 -> 1279.3 | G12: 2 | H12: 4514.19 | I12: 9600 | J12: 18124.33 | K12: 8524.33 | L12: 0 | M12: 0.37 | N12: 0 | O12: 150
B13: IS | C13: =0.008*MAX(C8:C9) -> 1200 | G13: 3 | H13: 4514.19 | I13: 9600 | J13: 8914.33 | K13: 0 | L13: 685.67 | M13: 0.37 | N13: 253.7 | O13: 150
B14: ESCRITURA | C14: 915 | G14: 4 | H14: 4514.19 | I14: 9600 | J14: 390 | K14: 0 | L14: 9210 | M14: 0.37 | N14: 3407.7 | O14: 150
B15: RENDA | G15: 5 | H15: 4514.19 | I15: 9600 | J15: 390 | K15: 0 | L15: 9210 | M15: 0.37 | N15: 3407.7 | O15: 150
B16: RENDA MENSAL | C16: 800 | G16: YIELD FINAL
B17: RENDA ANUAL | C17: =C16*12 -> 9600 | G17: ANO | H17: YIELD | I17: RESULTADO DEPOIS DE IMPOSTOS
B18: RENTABILIDADE BRUTA | C18: =C17/(C9+C10) -> 0.05647058824 | G18: 1 | H18: =(H11-N11-O11)/$H$3 -> 0.0564327617 | I18: =H11-N11-O11 -> 4364.19
B19: COMISSÕES BANCÁRIAS | D19: FINANCIAMENTO | G19: 2 | H19: =(H12-N12-O12)/$H$3 -> 0.0564327617 | I19: =H12-N12-O12 -> 4364.19
B20: FINANCIAMENTO | C20: 100000 | D20: Ano | E20: Juros pagos | F20: Dívida paga | G20: 3 | H20: 0.05315220067 | I20: 4110.49
B21: MATURIDADE (ANOS) | C21: 40 | D21: 1 | E21: =-CUMIPMT(C24/12,$C$21*12,$C$20,(1+(12*(D21-1))),(12*D21),0) -> 2982.033253 | F21: =($C$25*12)-E21 -> 1313.779811 | G21: 4 | H21: 0.01236824525 | I21: 956.49
B22: CAPITAIS PRÓPRIOS | C22: =C9-C20 -> 50000 | D22: 2 | E22: =-CUMIPMT(C24/12,$C$21*12,$C$20,(1+(12*(D22-1))),(12*D22),0) -> 2942.073383 | F22: 1353.739681 | G22: 5 | H22: 0.01236824525 | I22: 956.49
B23: LOAN TO VALUE | C23: =1-(C22/C9) -> 0.6666666667 | D23: 3 | E23: =-CUMIPMT(C24/12,$C$21*12,$C$20,(1+(12*(D23-1))),(12*D23),0) -> 2900.898095 | F23: 1394.914969 | G23: CUSTO E VALORIZAÇÃO EM FUNÇÃO DO TEMPO
B24: TAXA DE JURO EFETIVA | C24: 0.03 | D24: 4 | E24: =-CUMIPMT(C24/12,$C$21*12,$C$20,(1+(12*(D24-1))),(12*D24),0) -> 2858.470422 | F24: 1437.342643 | G24: Em função do tempo, as nossas rentabilidades perdem valor | H24: Taxa de inflação | I24: 0.03
B25: PRESTAÇÃO MENSAL | C25: =-PMT(C24/12,C21*12, C20) -> 357.984422 | D25: 3 | E25: =-CUMIPMT(C24/12,$C$21*12,$C$20,(1+(12*(D25-1))),(12*D25),0) -> 2900.898095 | F25: 1394.914969 | H25: Rendimento anual efetivo | I25: =NPV(I24,H6) -> 4382.705763
B26: I.S. SOBRE CRÉDITO | C26: =0.006*C20 -> 600 | D26: 5 | E26: =-CUMIPMT(C24/12,$C$21*12,$C$20,(1+(12*(D26-1))),(12*D26),0) -> 2814.75227 | F26: 1481.060795 | G26: Em função do tempo, o valor da casa aumenta | H26: Taxa de apreciação do imóvel | I26: 0.05
B27: COMISSÃO DE ESTUDOS | C27: 0 | D27: 6 | E27: =-CUMIPMT(C24/12,$C$21*12,$C$20,(1+(12*(D27-1))),(12*D27),0) -> 2769.704388 | F27: 1526.108676 | H27: Anos da compra para a venda | I27: 5
B28: COMISSÃO DE FORMALIZAÇÃO | C28: 0 | D28: 7 | E28: =-CUMIPMT(C24/12,$C$21*12,$C$20,(1+(12*(D28-1))),(12*D28),0) -> 2723.286333 | F28: 1572.526732 | H28: Valor de venda sem impostos | I28: =-FV(I26,I27,H6,C9) -> 216385.9668
B29: CHEQUE BANCÁRIO | C29: 0 | D29: 8 | E29: =-CUMIPMT(C24/12,$C$21*12,$C$20,(1+(12*(D29-1))),(12*D29),0) -> 2675.456427 | F29: 1620.356637
B30: REGISTO DA HIPOTÉCA | C30: 0 | D30: 9 | E30: =-CUMIPMT(C24/12,$C$21*12,$C$20,(1+(12*(D30-1))),(12*D30),0) -> 2626.17173 | F30: 1669.641335
B31: CERTIDÃO PERMANENTE | C31: 0 | D31: 10 | E31: =-CUMIPMT(C24/12,$C$21*12,$C$20,(1+(12*(D31-1))),(12*D31),0) -> 2575.387991 | F31: 1720.425073
B32: AVALIAÇÃO BANCÁRIA | C32: 0
B33: CERTIFICADO ENERGÉTICO | C33: 0
B34: JUROS PAGOS AO BANCO NO 1ºANO | C34: =E21 -> 2982.033253
B35: SEGUROS | C35: 168
B36: MANUNTENÇÃO DE CONTA | C36: 0
B37: MANUNTENÇÃO DE CONTA | C37: 0
B38: AMORTIZAÇÃO ANTECIPADA (TX VARIÁVEL)
B39: DISTRATE BANCÁRIO | C39: 0
B40: OUTRAS DESPESAS DE GESTÃO
B41: IMI ANUAL | C41: 150
B42: CONDOMÍNIO | C42: =20*12 -> 240
B43: LUZ E ÁGUA | C43: 0
B44: CUSTO DE MANUNTENÇÃO | C44: =C16/2 -> 400
B45: CUSTO DE GESTÃO | C45: 0
B46: RESUMO DE 1 ANO
B47: COMISSÕES BANCÁRIAS | C47: =C27+C28+C30+C31+C33+C35+C37+C38+C39+C32+C29 -> 168
B48: JUROS AO BANCO | C48: =E21 -> 2982.033253
B49: DESPESAS DE GESTÃO | C49: =SUM(C41:C45) -> 790
B50: IMPOSTOS + ESCRITURA | C50: =SUM(C12:C14) -> 3394.3

Sheet AuxiliarTributação Arrendamento
B1: TRIBUTAÇÃO PARA RENDIMENTOS PREDIAIS - CATEGORIA F
B2: Ano | C2: CASHFLOW | D2: RENDIMENTOS | E2: DEDUÇÕES | F2: DEDUÇÕES PARA ANOS SEGUINTES | G2: MONTANTE A TRIBUTAR | H2: TAXA | I2: IMPOSTO A PAGAR | J2: CONTABILISTA
B3: 1 | C3: =Arrendamento!$H$6 -> 4514.186936 | D3: =Arrendamento!$H$4 -> 9600 | E3: =Arrendamento!J9+Arrendamento!$C$41+Arrendamento!$C$42 -> 20390 | F3: SEM DEDUÇÕES PARA ANOS SEGUINTES | G3: =IF(D3-E3<0,0,D3-E3) -> 0 | H3: =IF(Arrendamento!$H$9="Menos de 5 anos",25%,IF(Arrendamento!$H$9="Mais de 5 anos e menos de 10 anos",15%,IF(Arrendamento!$H$9="Mais de 10 anos e menos de 20 anos",10%,IF(Arrendamento!$H$9="Superior a 20 anos",5%,"")))) -> 0.25 | I3: =H3*G3 -> 0 | J3: 0
B4: 2 | C4: =Arrendamento!$H$6 -> 4514.186936 | D4: =Arrendamento!$H$4 -> 9600 | E4: =Arrendamento!$C$41+Arrendamento!$C$42 -> 390 | G4: =IF(D4-E4<0,0,D4-E4) -> 9210 | H4: =IF(Arrendamento!$H$9="Menos de 5 anos",25%,IF(Arrendamento!$H$9="Mais de 5 anos e menos de 10 anos",15%,IF(Arrendamento!$H$9="Mais de 10 anos e menos de 20 anos",10%,IF(Arrendamento!$H$9="Superior a 20 anos",5%,"")))) -> 0.25 | I4: =H4*G4 -> 2302.5
B5: 3 | C5: =Arrendamento!$H$6 -> 4514.186936 | D5: =Arrendamento!$H$4 -> 9600 | E5: =Arrendamento!$C$41+Arrendamento!$C$42 -> 390 | G5: =IF(D5-E5<0,0,D5-E5) -> 9210 | H5: =IF(Arrendamento!$H$9="Menos de 5 anos",25%,IF(Arrendamento!$H$9="Mais de 5 anos e menos de 10 anos",15%,IF(Arrendamento!$H$9="Mais de 10 anos e menos de 20 anos",10%,IF(Arrendamento!$H$9="Superior a 20 anos",5%,"")))) -> 0.25 | I5: =H5*G5 -> 2302.5
B6: 4 | C6: =Arrendamento!$H$6 -> 4514.186936 | D6: =Arrendamento!$H$4 -> 9600 | E6: =Arrendamento!$C$41+Arrendamento!$C$42 -> 390 | G6: =IF(D6-E6<0,0,D6-E6) -> 9210 | H6: =IF(Arrendamento!$H$9="Menos de 5 anos",25%,IF(Arrendamento!$H$9="Mais de 5 anos e menos de 10 anos",15%,IF(Arrendamento!$H$9="Mais de 10 anos e menos de 20 anos",10%,IF(Arrendamento!$H$9="Superior a 20 anos",5%,"")))) -> 0.25 | I6: =H6*G6 -> 2302.5
B7: 5 | C7: =Arrendamento!$H$6 -> 4514.186936 | D7: =Arrendamento!$H$4 -> 9600 | E7: =Arrendamento!$C$41+Arrendamento!$C$42 -> 390 | G7: =IF(D7-E7<0,0,D7-E7) -> 9210 | H7: =IF(Arrendamento!$H$9="Menos de 5 anos",25%,IF(Arrendamento!$H$9="Mais de 5 anos e menos de 10 anos",15%,IF(Arrendamento!$H$9="Mais de 10 anos e menos de 20 anos",10%,IF(Arrendamento!$H$9="Superior a 20 anos",5%,"")))) -> 0.25 | I7: =H7*G7 -> 2302.5
B8: TRIBUTAÇÃO PARA RENDIMENTOS PREDIAIS COM ENGLOBAMENTO- CATEGORIA F
B9: Ano | C9: CASHFLOW | D9: RENDIMENTOS | E9: DEDUÇÕES | F9: DEDUÇÕES PARA ANOS SEGUINTES | G9: MONTANTE A TRIBUTAR | H9: TAXA | I9: IMPOSTO A PAGAR | J9: CONTABILISTA
B10: 1 | C10: =Arrendamento!$H$6 -> 4514.186936 | D10: =Arrendamento!$H$4 -> 9600 | E10: =Arrendamento!J9+Arrendamento!$C$41+Arrendamento!$C$42 -> 20390 | F10: =IF(D10-E10<0,-(D10-E10),0) -> 10790 | G10: =IF(D10-E10<0,0,D10-E10) -> 0 | H10: =Arrendamento!$J$6 -> 0.37 | I10: =H10*G10 -> 0 | J10: 0
B11: 2 | C11: =Arrendamento!$H$6 -> 4514.186936 | D11: =Arrendamento!$H$4 -> 9600 | E11: =$F$10+Arrendamento!$C$41+Arrendamento!$C$42 -> 11180 | F11: =IF(D11-E11<0,-(D11-E11),0) -> 1580 | G11: =IF(D11-E11<0,0,D11-E11) -> 0 | H11: =Arrendamento!$J$6 -> 0.37 | I11: =H11*G11 -> 0
B12: 3 | C12: =Arrendamento!$H$6 -> 4514.186936 | D12: =Arrendamento!$H$4 -> 9600 | E12: =$F$11+Arrendamento!$C$41+Arrendamento!$C$42 -> 1970 | F12: 0 | G12: 7630 | H12: =Arrendamento!$J$6 -> 0.37 | I12: 2823.1
B13: 4 | C13: =Arrendamento!$H$6 -> 4514.186936 | D13: =Arrendamento!$H$4 -> 9600 | E13: =$F$12+Arrendamento!$C$41+Arrendamento!$C$42 -> 390 | F13: 0 | G13: 9210 | H13: =Arrendamento!$J$6 -> 0.37 | I13: 3407.7
B14: 5 | C14: =Arrendamento!$H$6 -> 4514.186936 | D14: =Arrendamento!$H$4 -> 9600 | E14: =$F$13+Arrendamento!$C$41+Arrendamento!$C$42 -> 390 | F14: 0 | G14: 9210 | H14: =Arrendamento!$J$6 -> 0.37 | I14: 3407.7
B15: TRIBUTAÇÃO PARA TRABALHADOR INDEPENDENTE COM CONTABILIDADE ORGANIZADA - CATEGORIA B
B16: Ano | C16: CASHFLOW | D16: RENDIMENTOS | E16: DEDUÇÕES | F16: DEDUÇÕES PARA ANOS SEGUINTES | G16: MONTANTE A TRIBUTAR | H16: TAXA | I16: IMPOSTO A PAGAR | J16: CONTABILISTA
B17: 1 | C17: =Arrendamento!$H$6 -> 4514.186936 | D17: =Arrendamento!$H$4 -> 9600 | E17: =Arrendamento!$J$9+Arrendamento!C47+Arrendamento!C48+Arrendamento!C49+Arrendamento!C50 -> 27334.33325 | F17: =IF(D17-E17<0,-(D17-E17),0) -> 17734.33325 | G17: =IF(D17-E17<0,0,D17-E17) -> 0 | H17: =Arrendamento!$J$6 -> 0.37 | I17: =H17*G17 -> 0 | J17: 150
B18: 2 | C18: =Arrendamento!$H$6 -> 4514.186936 | D18: =Arrendamento!$H$4 -> 9600 | E18: =$F$17+Arrendamento!$C$41+Arrendamento!$C$42 -> 18124.33325 | F18: =IF(D18-E18<0,-(D18-E18),0) -> 8524.333253 | G18: =IF(D18-E18<0,0,D18-E18) -> 0 | H18: =Arrendamento!$J$6 -> 0.37 | I18: =H18*G18 -> 0 | J18: 150
B19: 3 | C19: =Arrendamento!$H$6 -> 4514.186936 | D19: =Arrendamento!$H$4 -> 9600 | E19: =$F$18+Arrendamento!$C$41+Arrendamento!$C$42 -> 8914.333253 | F19: 0 | G19: 685.6667468 | H19: =Arrendamento!$J$6 -> 0.37 | I19: 253.6966963 | J19: 150
B20: 4 | C20: =Arrendamento!$H$6 -> 4514.186936 | D20: =Arrendamento!$H$4 -> 9600 | E20: =$F$12+Arrendamento!$C$41+Arrendamento!$C$42 -> 390 | F20: 0 | G20: 9210 | H20: =Arrendamento!$J$6 -> 0.37 | I20: 3407.7 | J20: 150
B21: 5 | C21: =Arrendamento!$H$6 -> 4514.186936 | D21: =Arrendamento!$H$4 -> 9600 | E21: =$F$13+Arrendamento!$C$41+Arrendamento!$C$42 -> 390 | F21: 0 | G21: 9210 | H21: =Arrendamento!$J$6 -> 0.37 | I21: 3407.7 | J21: 150
B22: TRIBUTAÇÃO EM EMPRESA
B23: Ano | C23: CASHFLOW | D23: RENDIMENTOS | E23: DEDUÇÕES | F23: DEDUÇÕES PARA ANOS SEGUINTES | G23: MONTANTE A TRIBUTAR | H23: TAXA | I23: IMPOSTO A PAGAR | J23: CONTABILISTA
B24: 1 | C24: =Arrendamento!$H$6 -> 4514.186936 | D24: =Arrendamento!$H$4 -> 9600 | E24: =Arrendamento!$J$9+Arrendamento!C55+Arrendamento!C56+Arrendamento!C57+Arrendamento!C58 -> 20000 | F24: =IF(D24-E24<0,-(D24-E24),0) -> 10400 | G24: =IF(D24-E24<0,0,D24-E24) -> 0 | H24: =0.17 -> 0.17 | I24: =H24*G24 -> 0 | J24: 150
B25: 2 | C25: =Arrendamento!$H$6 -> 4514.186936 | D25: =Arrendamento!$H$4 -> 9600 | E25: =$F$17+Arrendamento!$C$41+Arrendamento!$C$42 -> 18124.33325 | F25: =IF(D25-E25<0,-(D25-E25),0) -> 8524.333253 | G25: =IF(D25-E25<0,0,D25-E25) -> 0 | H25: =0.17 -> 0.17 | I25: =H25*G25 -> 0 | J25: 150
B26: 3 | C26: =Arrendamento!$H$6 -> 4514.186936 | D26: =Arrendamento!$H$4 -> 9600 | E26: =$F$18+Arrendamento!$C$41+Arrendamento!$C$42 -> 8914.333253 | F26: 0 | G26: 685.6667468 | H26: 0.17 | I26: 116.5633469 | J26: 150
B27: 4 | C27: =Arrendamento!$H$6 -> 4514.186936 | D27: =Arrendamento!$H$4 -> 9600 | E27: =$F$12+Arrendamento!$C$41+Arrendamento!$C$42 -> 390 | F27: 0 | G27: 9210 | H27: 0.17 | I27: 1565.7 | J27: 150
B28: 5 | C28: =Arrendamento!$H$6 -> 4514.186936 | D28: =Arrendamento!$H$4 -> 9600 | E28: =$F$13+Arrendamento!$C$41+Arrendamento!$C$42 -> 390 | F28: 0 | G28: 9210 | H28: 0.17 | I28: 1565.7 | J28: 150

Sheet AuxiliarTributação Revenda
B1: TRIBUTAÇÃO A TÍTULO PESSOAL
B2: RESULTADO ANTES DE IMPOSTOS | C2: =Revenda!K30 -> 59140.96314
B3: VALOR PARA EFEITOS FISCAIS | C3: =Revenda!C45-Revenda!C49-Revenda!C50-Revenda!C10 -> 62487.5
B4: VALOR PARA TRIBUTAÇÃO DE MAIS-VALIAS | C4: =C3/2 -> 31243.75
B5: TAXA DE IRS DO INVESTIDOR | C5: =IF(Revenda!C53<7092,'AuxiliarTABELA IRS'!C5,IF(Revenda!C53<10701,'AuxiliarTABELA IRS'!C6,IF(Revenda!C53<20262,'AuxiliarTABELA IRS'!C7,IF(Revenda!C53<25001,'AuxiliarTABELA IRS'!C8,IF(Revenda!C53<36857,'AuxiliarTABELA IRS'!C9,IF(Revenda!C53<80641,'AuxiliarTABELA IRS'!C10,IF(Revenda!C53>80641,'AuxiliarTABELA IRS'!C11))))))) -> 0.35
B6: RENDIMENTOS ANUAIS DO INVESTIDOR + LUCRO DO INVESTIMENTO | C6: =Revenda!C53+C4 -> 56243.75
B7: TAXA DE IRS DO INVESTIDOR COM MAIS-VALIA | C7: =IF(C6<7092,'AuxiliarTABELA IRS'!C5,IF(C6<10701,'AuxiliarTABELA IRS'!C6,IF(C6<20262,'AuxiliarTABELA IRS'!C7,IF(C6<25001,'AuxiliarTABELA IRS'!C8,IF(C6<36857,'AuxiliarTABELA IRS'!C9,IF(C6<80641,'AuxiliarTABELA IRS'!C10,IF(C6>80641,'AuxiliarTABELA IRS'!C11))))))) -> 0.45
B8: MAIS-VALIAS | C8: =(C6*C7-(IF(C6<7091,'AuxiliarTABELA IRS'!D5,IF(C6<10700,'AuxiliarTABELA IRS'!D6,IF(C6<20261,'AuxiliarTABELA IRS'!D7,IF(C6<25000,'AuxiliarTABELA IRS'!D8,IF(C6<36856,'AuxiliarTABELA IRS'!D9,IF(C6<80640,'AuxiliarTABELA IRS'!D10,IF(C6>80640,'AuxiliarTABELA IRS'!D11)))))))))-(Revenda!C53*C5-(IF(Revenda!C53<7091,'AuxiliarTABELA IRS'!D5,IF(Revenda!C53<10700,'AuxiliarTABELA IRS'!D6,IF(Revenda!C53<20261,'AuxiliarTABELA IRS'!D7,IF(Revenda!C53<25000,'AuxiliarTABELA IRS'!D8,IF(Revenda!C53<36856,'AuxiliarTABELA IRS'!D9,IF(Revenda!C53<80640,'AuxiliarTABELA IRS'!D10,IF(Revenda!C53>80640,'AuxiliarTABELA IRS'!D11))))))))) -> 13610.4475
B9: TRIBUTAÇÃO EMPRESA
B10: LUCRO ANTES DE IMPOSTOS | C10: =Revenda!K30 -> 59140.96314
B11: TAXA DE IRC | C11: Conforme CIRC
B12: IMPOSTOS A PAGAR | C12: =IF(C10<=50000,C10*16%,50000*16% + (C10-50000)*20%) -> 9828.192629
B13: A taxa de IRC é calculada da seguinte forma:
B14: 16% sobre os primeiros 50,000 euros,
B15: e 20% sobre o restante. Isto para o cenário
B16: de empresa. Aplica-se o mesmo para o arrendamento
B17: TRIBUTAÇÃO TRABALHADOR INDEPENDENTE EM REGIME SIMPLIFICADO
B18: VOLUME DE NEGÓCIO | C18: =Revenda!C12 -> 175000
B19: VALOR PARA EFEITOS FISCAIS | C19: =0.15*C18 -> 26250
B20: TAXA DE IRS DO INVESTIDOR | C20: =IF(Revenda!C53<7092,'AuxiliarTABELA IRS'!C5,IF(Revenda!C53<10701,'AuxiliarTABELA IRS'!C6,IF(Revenda!C53<20262,'AuxiliarTABELA IRS'!C7,IF(Revenda!C53<25001,'AuxiliarTABELA IRS'!C8,IF(Revenda!C53<36857,'AuxiliarTABELA IRS'!C9,IF(Revenda!C53<80641,'AuxiliarTABELA IRS'!C10,IF(Revenda!C53>80641,'AuxiliarTABELA IRS'!C11))))))) -> 0.35
B21: RENDIMENTOS ANUAIS DO INVESTIDOR + LUCRO DO INVESTIMENTO | C21: =Revenda!C53+C19 -> 51250
B22: TAXA DE IRS DO INVESTIDOR COM MAIS-VALIA | C22: =IF(C21<7092,'AuxiliarTABELA IRS'!C5,IF(C21<10701,'AuxiliarTABELA IRS'!C6,IF(C21<20262,'AuxiliarTABELA IRS'!C7,IF(C21<25001,'AuxiliarTABELA IRS'!C8,IF(C21<36857,'AuxiliarTABELA IRS'!C9,IF(C21<80641,'AuxiliarTABELA IRS'!C10,IF(C21>80641,'AuxiliarTABELA IRS'!C11))))))) -> 0.45
B23: MAIS-VALIAS | C23: =(C21*C22-(IF(C21<7091,'AuxiliarTABELA IRS'!D5,IF(C21<10700,'AuxiliarTABELA IRS'!D6,IF(C21<20261,'AuxiliarTABELA IRS'!D7,IF(C21<25000,'AuxiliarTABELA IRS'!D8,IF(C21<36856,'AuxiliarTABELA IRS'!D9,IF(C21<80640,'AuxiliarTABELA IRS'!D10,IF(C21>80640,'AuxiliarTABELA IRS'!D11)))))))))-(Revenda!C53*C20-(IF(Revenda!C53<7091,'AuxiliarTABELA IRS'!D5,IF(Revenda!C53<10700,'AuxiliarTABELA IRS'!D6,IF(Revenda!C53<20261,'AuxiliarTABELA IRS'!D7,IF(Revenda!C53<25000,'AuxiliarTABELA IRS'!D8,IF(Revenda!C53<36856,'AuxiliarTABELA IRS'!D9,IF(Revenda!C53<80640,'AuxiliarTABELA IRS'!D10,IF(Revenda!C53>80640,'AuxiliarTABELA IRS'!D11))))))))) -> 11363.26

Sheet AuxiliarTABELA IRS
B2: AUXILIAR PARA CÁLCULO DE MAIS-VALIA - IRS
B3: Tabela de IRS para Categoria A sem dependentes
B4: Rendimento Coletável (€) | C4: Taxa (%) | D4: Parcela a abater
B5: Até 7.091 | C5: 0.145 | D5: 0
B6: Mais de 7 091 até 10 700 | C6: 0.23 | D6: 602.74
B7: Mais de 10 700 € até 20 261 € | C7: 0.285 | D7: 1191.24
B8: Mais de 21 261 € até 25 000 € | C8: 0.35 | D8: 2547.63
B9: Mais de 25 000 € até 36 856 € | C9: 0.37 | D9: 3297.63
B10: Mais de 36 856 € até 80 640 € | C10: 0.45 | D10: 6246.87
B11: Mais de 81 199 € | C11: 0.48 | D11: 8665.07

Sheet AuxiliarIMT
B1: REVENDA | F1: ARRENDAMENTO
B2: Valor do imóvel | C2: parcela | D2: taxa | F2: Valor do imóvel | G2: parcela | H2: taxa
B3: 0 | C3: 0 | D3: 0 | F3: 0 | G3: 0 | H3: 0
B4: 101917 | C4: 2038.34 | D4: 0.02 | F4: 101917 | G4: 2038.34 | H4: 0.02
B5: 139412 | C5: 6220.7 | D5: 0.05 | F5: 139412 | G5: 6220.7 | H5: 0.05
B6: 190086 | C6: 10022.42 | D6: 0.07 | F6: 190086 | G6: 10022.42 | H6: 0.07
B7: 316772 | C7: 13190.14 | D7: 0.08 | F7: 316772 | G7: 13190.14 | H7: 0.08
B8: 633453 | C8: 0 | D8: 0.06 | F8: 633453 | G8: 0 | H8: 0.06
B9: 1102920 | C9: 0 | D9: 0.075 | F9: 1102920 | G9: 0 | H9: 0.075
B11: =MAX(Revenda!C8,Revenda!C9) -> 100000 | C11: =B11*VLOOKUP(B11,B2:D9,3,TRUE)-VLOOKUP(B11,B2:D9,2,TRUE) -> 0 | F11: =MAX(Arrendamento!C8,Arrendamento!C9) -> 150000 | G11: =F11*VLOOKUP(F11,F2:H9,3,TRUE)-VLOOKUP(F11,F2:H9,2,TRUE) -> 1279.3
